[Event "Chinese Championship-B Men 2024"]
[Site "Liaocheng"]
[Date "2024.04.24"]
[Round "4.10"]
[White "Wang, Zihang"]
[Black "Xu, Wei"]
[Result "0-1"]
[WhiteElo "1846"]
[BlackElo "2047"]
[PlyCount "136"]
[EventDate "2024.04.24"]
[EventType "swiss"]
[EventCountry "CHN"]
[TimeControl "5400+30"]

1. e4 {[%emt 0:00:02]} Nf6 {[%emt 0:03:41]} 2. e5 {[%emt 0:00:23]} Nd5 {[%emt 0:00:09]} 3. d4 {[%emt 0:00:11]} d6 {[%emt 0:00:06]} 4. c4 {[%emt 0:00:25]} Nb6 {[%emt 0:00:05]} 5. exd6 {[%emt 0:00:40]} cxd6 {[%emt 0:00:06]} 6. Nc3 {[%emt 0:01:49]} g6 {[%emt 0:00:27]} 7. Nf3 {[%emt 0:05:10]} Bg7 {[%emt 0:00:27]} 8. h3 {[%emt 0:00:18]} O-O {[%emt 0:00:27]} 9. Be2 {[%emt 0:00:39]} Nc6 {[%emt 0:07:21]} 10. O-O {[%emt 0:00:31]} Bf5 {[%emt 0:01:03]} 11. d5 {[%emt 0:03:31]} Na5 {[%emt 0:01:43]} 12. Nd4 {[%emt 0:00:25]} Naxc4 {[%emt 0:00:32]} 13. Nxf5 {[%emt 0:00:15]} gxf5 {[%emt 0:00:03]} 14. a4 {[%emt 0:00:17]} a5 {[%emt 0:00:06]} 15. Bd3 {[%emt 0:03:08]} e6 {[%emt 0:15:25]} 16. Re1 {[%emt 0:06:44]} Qf6 {[%emt 0:10:11]} 17. Qb3 {[%emt 0:44:14]} Rac8 {[%emt 0:04:10]} 18. dxe6 {[%emt 0:06:02]} fxe6 {[%emt 0:00:52]} 19. Rb1 {[%emt 0:07:16]} d5 {[%emt 0:02:13]} 20. Bxc4 {[%emt 0:01:16]} Nxc4 {[%emt 0:00:09]} 21. Qxb7 {[%emt 0:00:15]} f4 {[%emt 0:06:15]} 22. f3 {[%emt 0:09:57]} Qf5 {[%emt 0:45:59]} 23. Ra1 {[%emt 0:08:32]} Rb8 {[%emt 0:00:30]} 24. Qd7 {[%emt 0:00:30]} Bd4+ {[%emt 0:00:30]} 25. Kh1 {[%emt 0:00:30]} Ne5 {[%emt 0:00:30]} 26. Qe7 {[%emt 0:00:00]} Rf7 {[%emt 0:00:00]} 27. Qd6 {[%emt 0:01:00]} Rb6 {[%emt 0:00:00]} 28. Qd8+ {[%emt 0:00:00]} Rf8 {[%emt 0:00:00]} 29. Qh4 {[%emt 0:01:00]} Nd3 {[%emt 0:02:00]} 30. Re2 {[%emt 0:00:30]} Kh8 {[%emt 0:00:00]} 31. Nb5 {[%emt 0:00:00]} Bf6 {[%emt 0:00:00]} 32. Qg4 {[%emt 0:00:00]} Qxg4 {[%emt 0:00:00]} 33. hxg4 {[%emt 0:00:00]} Rc8 {[%emt 0:00:00]} 34. Bd2 {[%emt 0:00:00]} Nxb2 {[%emt 0:00:00]} 35. Bxa5 {[%emt 0:01:41]} Ra6 {[%emt 0:00:00]} 36. Bd2 {[%emt 0:00:47]} Nxa4 {[%emt 0:00:00]} 37. Rae1 {[%emt 0:00:28]} e5 {[%emt 0:00:00]} 38. g5 {[%emt 0:00:32]} Bg7 {[%emt 0:00:00]} 39. Bxf4 {[%emt 0:00:24]} Rb6 {[%emt 0:00:00]} 40. Na3 {[%emt 0:00:31]} Nc3 {[%emt 0:00:00]} 41. Re3 {[%emt 0:00:35]} Rb3 {[%emt 0:00:00]} 42. Nc2 {[%emt 0:00:15]} Rb2 {[%emt 0:00:00]} 43. Na1 {[%emt 0:00:39]} exf4 {[%emt 0:00:00]} 44. Re8+ {[%emt 0:00:12]} Rxe8 {[%emt 0:00:00]} 45. Rxe8+ {[%emt 0:00:04]} Bf8 {[%emt 0:00:00]} 46. Rxf8+ {[%emt 0:00:05]} Kg7 {[%emt 0:00:00]} 47. Rc8 {[%emt 0:01:35]} d4 {[%emt 0:00:00]} 48. Kh2 {[%emt 0:00:06]} Kg6 {[%emt 0:00:00]} 49. Kh3 {[%emt 0:01:05]} Kxg5 {[%emt 0:00:00]} 50. Rc5+ {[%emt 0:00:22]} Kf6 {[%emt 0:00:10]} 51. Kg4 {[%emt 0:00:37]} Ne2 {[%emt 0:00:22]} 52. Rd5 {[%emt 0:00:19]} Ke6 {[%emt 0:00:23]} 53. Rd8 {[%emt 0:00:04]} Ke5 {[%emt 0:00:22]} 54. Nb3 {[%emt 0:01:07]} h5+ {[%emt 0:02:59]} 55. Kg5 {[%emt 0:00:09]} Rxb3 {[%emt 0:00:28]} 56. Re8+ {[%emt 0:00:03]} Kd5 {[%emt 0:00:06]} 57. Rxe2 {[%emt 0:00:03]} d3 {[%emt 0:00:31]} 58. Re8 {[%emt 0:00:47]} Rb6 {[%emt 0:00:37]} 59. Re1 {[%emt 0:00:52]} Kd4 {[%emt 0:00:19]} 60. Kxf4 {[%emt 0:00:34]} d2 {[%emt 0:00:33]} 61. Rh1 {[%emt 0:00:35]} Rc6 {[%emt 0:01:10]} 62. Rd1 {[%emt 0:00:10]} Kd3 63. g4 {[%emt 0:00:27]} h4 {[%emt 0:00:17]} 64. g5 {[%emt 0:00:07]} Rc4+ {[%emt 0:00:10]} 65. Kf5 {[%emt 0:00:09]} Ke2 {[%emt 0:00:15]} 66. Rxd2+ {[%emt 0:00:04]} Kxd2 {[%emt 0:00:04]} 67. g6 {[%emt 0:00:05]} h3 {[%emt 0:00:07]} 68. g7 {[%emt 0:00:03]} Rc8 {[%emt 0:00:03]} 0-1

[Event "Chinese Championship-B Men 2024"]
[Site "Liaocheng"]
[Date "2024.04.24"]
[Round "4.11"]
[White "Liu, Haoling"]
[Black "Zhang, Zhi"]
[Result "1-0"]
[WhiteElo "1772"]
[BlackElo "1987"]
[PlyCount "59"]
[EventDate "2024.04.24"]
[EventType "swiss"]
[EventCountry "CHN"]
[TimeControl "5400+30"]

1. d4 {[%emt 0:00:13]} d5 {[%emt 0:00:08]} 2. Nf3 {[%emt 0:00:19]} Nf6 {[%emt 0:00:05]} 3. Bf4 {[%emt 0:00:18]} c5 {[%emt 0:00:25]} 4. e3 {[%emt 0:00:07]} Nc6 {[%emt 0:00:24]} 5. Nbd2 {[%emt 0:00:12]} cxd4 {[%emt 0:02:58]} 6. exd4 {[%emt 0:00:09]} Bf5 {[%emt 0:01:14]} 7. Bb5 {[%emt 0:00:49]} e6 {[%emt 0:04:41]} 8. Ne5 {[%emt 0:06:18]} Qb6 {[%emt 0:01:54]} 9. Qe2 {[%emt 0:04:35]} Qxd4 {[%emt 0:09:59]} 10. Nxc6 {[%emt 0:03:09]} Qxf4 {[%emt 0:00:04]} 11. g3 {[%emt 0:04:40]} Qc7 {[%emt 0:08:03]} 12. Nd4+ {[%emt 0:02:55]} Kd8 {[%emt 0:01:16]} 13. Nxf5 {[%emt 0:00:12]} exf5 {[%emt 0:03:21]} 14. O-O-O {[%emt 0:03:23]} a6 {[%emt 0:08:11]} 15. Ba4 {[%emt 0:05:20]} Bd6 {[%emt 0:06:05]} 16. Qd3 {[%emt 0:09:29]} f4 {[%emt 0:09:30]} 17. Kb1 {[%emt 0:01:53]} fxg3 {[%emt 0:02:10]} 18. hxg3 {[%emt 0:00:10]} Ke7 {[%emt 0:03:35]} 19. g4 {[%emt 0:03:10]} Bf4 {[%emt 0:07:42]} 20. Nf3 {[%emt 0:15:12]} Rhd8 {[%emt 0:03:58]} 21. g5 {[%emt 0:05:02]} Ne4 {[%emt 0:00:06]} 22. Rxh7 {[%emt 0:00:25]} Qb6 {[%emt 0:10:20]} 23. Rxg7 {[%emt 0:08:03]} Rd6 {[%emt 0:05:26]} 24. Bb3 {[%emt 0:01:33]} Re8 {[%emt 0:03:38]} 25. g6 {[%emt 0:08:48]} Nxf2 {[%emt 0:04:40]} 26. Re1+ {[%emt 0:01:01]} Re6 {[%emt 0:01:44]} 27. Rxf7+ {[%emt 0:01:27]} Kd8 {[%emt 0:00:02]} 28. Qxd5+ {[%emt 0:01:45]} Qd6 {[%emt 0:00:36]} 29. Rxe6 {[%emt 0:03:18]} Rxe6 {[%emt 0:00:05]} 30. Rf8+ {[%emt 0:01:49]} 1-0

[Event "Chinese Championship-B Men 2024"]
[Site "Liaocheng"]
[Date "2024.04.24"]
[Round "4.12"]
[White "Wu, Yinan"]
[Black "Liu, Bei"]
[Result "1/2-1/2"]
[WhiteElo "1683"]
[BlackElo "1964"]
[PlyCount "82"]
[EventDate "2024.04.24"]
[EventType "swiss"]
[EventCountry "CHN"]
[TimeControl "5400+30"]

1. d4 {[%emt 0:00:03]} d5 {[%emt 0:01:58]} 2. c4 {[%emt 0:00:11]} c6 {[%emt 0:00:04]} 3. cxd5 {[%emt 0:00:20]} cxd5 {[%emt 0:00:05]} 4. Nc3 {[%emt 0:00:06]} Nf6 {[%emt 0:00:10]} 5. Bf4 {[%emt 0:00:06]} Nc6 {[%emt 0:00:06]} 6. e3 {[%emt 0:00:38]} a6 {[%emt 0:00:05]} 7. Bd3 {[%emt 0:00:07]} Bg4 {[%emt 0:00:08]} 8. Nge2 {[%emt 0:00:16]} e6 {[%emt 0:00:09]} 9. O-O {[%emt 0:00:15]} Bd6 {[%emt 0:00:26]} 10. Bxd6 {[%emt 0:00:55]} Qxd6 {[%emt 0:00:29]} 11. Rc1 {[%emt 0:01:15]} O-O {[%emt 0:00:28]} 12. Na4 {[%emt 0:04:16]} e5 {[%emt 0:00:21]} 13. dxe5 {[%emt 0:02:54]} Nxe5 {[%emt 0:00:04]} 14. Qd2 {[%emt 0:10:32]} Nxd3 {[%emt 0:32:50]} 15. Qxd3 {[%emt 0:00:18]} Qb4 {[%emt 0:00:02]} 16. Qd4 {[%emt 0:12:22]} a5 {[%emt 0:03:20]} 17. a3 {[%emt 0:02:16]} Qd6 {[%emt 0:09:40]} 18. Nf4 {[%emt 0:01:46]} Rac8 {[%emt 0:01:30]} 19. Nb6 {[%emt 0:01:29]} Rcd8 {[%emt 0:02:08]} 20. h3 {[%emt 0:01:24]} Be6 {[%emt 0:04:58]} 21. Rfd1 {[%emt 0:01:03]} Rfe8 {[%emt 0:01:01]} 22. Qc5 {[%emt 0:04:21]} Qe5 {[%emt 0:02:18]} 23. Qc3 {[%emt 0:03:47]} Qxc3 {[%emt 0:02:37]} 24. Rxc3 {[%emt 0:00:08]} Rd6 {[%emt 0:00:13]} 25. Na4 {[%emt 0:03:31]} g5 {[%emt 0:24:34]} 26. Ne2 {[%emt 0:02:37]} Rb8 {[%emt 0:03:50]} 27. Nd4 {[%emt 0:04:11]} b5 {[%emt 0:03:58]} 28. Nc5 {[%emt 0:00:24]} Ne4 {[%emt 0:00:37]} 29. Rcc1 {[%emt 0:01:18]} Nf6 {[%emt 0:02:17]} 30. Nd3 {[%emt 0:02:59]} Nd7 {[%emt 0:00:57]} 31. Rc6 {[%emt 0:03:31]} Rxc6 {[%emt 0:00:32]} 32. Nxc6 {[%emt 0:00:04]} Ra8 {[%emt 0:00:14]} 33. Rc1 {[%emt 0:01:12]} Nb6 {[%emt 0:00:34]} 34. Nd4 {[%emt 0:02:07]} Bd7 {[%emt 0:00:40]} 35. Rc5 {[%emt 0:04:56]} Rc8 {[%emt 0:01:23]} 36. b4 {[%emt 0:02:16]} Rxc5 {[%emt 0:01:34]} 37. bxc5 {[%emt 0:00:49]} Nc8 {[%emt 0:00:02]} 38. c6 {[%emt 0:04:57]} Be8 {[%emt 0:00:01]} 39. Nxb5 {[%emt 0:00:18]} Bxc6 {[%emt 0:00:15]} 40. Nd4 {[%emt 0:00:24]} Be8 {[%emt 0:01:45]} 41. Nb3 {[%emt 0:04:22]} a4 {[%emt 0:00:01]} 1/2-1/2

[Event "Chinese Championship-B Men 2024"]
[Site "Liaocheng"]
[Date "2024.04.24"]
[Round "4.13"]
[White "Wei, Zhengchen"]
[Black "Zhang, Yinzhe"]
[Result "0-1"]
[WhiteElo "1675"]
[BlackElo "1927"]
[PlyCount "64"]
[EventDate "2024.04.24"]
[EventType "swiss"]
[EventCountry "CHN"]
[TimeControl "5400+30"]

1. e4 {[%emt 0:00:20]} c5 {[%emt 0:00:03]} 2. Nf3 {[%emt 0:00:29]} e6 {[%emt 0:00:19]} 3. d4 {[%emt 0:00:30]} cxd4 {[%emt 0:00:03]} 4. Nxd4 {[%emt 0:00:06]} Nf6 {[%emt 0:01:30]} 5. Nc3 {[%emt 0:00:08]} d6 {[%emt 0:00:04]} 6. g4 {[%emt 0:01:18]} h6 {[%emt 0:00:56]} 7. Bg2 {[%emt 0:03:37]} a6 {[%emt 0:01:07]} 8. h3 {[%emt 0:00:35]} Qc7 {[%emt 0:01:40]} 9. Be3 {[%emt 0:02:23]} Nc6 {[%emt 0:06:47]} 10. Nde2 {[%emt 0:10:19]} b5 {[%emt 0:03:17]} 11. a3 {[%emt 0:01:37]} Bb7 {[%emt 0:00:06]} 12. Qd2 {[%emt 0:01:09]} Ne5 {[%emt 0:01:36]} 13. b3 {[%emt 0:00:24]} Ng6 {[%emt 0:00:08]} 14. f3 {[%emt 0:02:49]} Nh4 {[%emt 0:00:30]} 15. O-O {[%emt 0:00:38]} Nxg2 {[%emt 0:00:25]} 16. Kxg2 {[%emt 0:00:12]} Be7 {[%emt 0:02:31]} 17. Bd4 {[%emt 0:05:05]} O-O {[%emt 0:06:11]} 18. h4 {[%emt 0:02:18]} e5 {[%emt 0:01:16]} 19. Be3 {[%emt 0:01:21]} d5 {[%emt 0:00:05]} 20. Nxd5 {[%emt 0:09:09]} Nxd5 {[%emt 0:00:57]} 21. exd5 {[%emt 0:00:03]} Rfd8 {[%emt 0:03:02]} 22. Ng3 {[%emt 0:06:17]} Rxd5 {[%emt 0:09:13]} 23. Qe2 {[%emt 0:00:51]} Bxh4 {[%emt 0:06:43]} 24. Nf5 {[%emt 0:00:18]} Bg5 {[%emt 0:02:00]} 25. Bxg5 {[%emt 0:00:28]} hxg5 {[%emt 0:00:02]} 26. Ng3 {[%emt 0:05:43]} Rd4 {[%emt 0:08:26]} 27. Rae1 {[%emt 0:07:19]} f6 {[%emt 0:19:39]} 28. Kh2 {[%emt 0:03:45]} e4 {[%emt 0:01:36]} 29. Kh3 {[%emt 0:00:48]} Kf7 {[%emt 0:01:43]} 30. fxe4 {[%emt 0:00:08]} Rh8+ {[%emt 0:00:11]} 31. Nh5 {[%emt 0:02:13]} Rxe4 {[%emt 0:00:50]} 32. Qd2 {[%emt 0:01:53]} Rxh5+ {[%emt 0:00:07]} 0-1

[Event "Chinese Championship-B Men 2024"]
[Site "Liaocheng"]
[Date "2024.04.24"]
[Round "4.14"]
[White "Wang, Fan"]
[Black "Xia, Jinnan"]
[Result "1-0"]
[WhiteElo "1932"]
[BlackElo "1819"]
[PlyCount "89"]
[EventDate "2024.04.24"]
[EventType "swiss"]
[EventCountry "CHN"]
[TimeControl "5400+30"]

1. e4 {[%emt 0:00:47]} c5 {[%emt 0:00:03]} 2. Nf3 {[%emt 0:00:51]} d6 {[%emt 0:00:02]} 3. d4 {[%emt 0:00:08]} cxd4 {[%emt 0:00:05]} 4. Nxd4 {[%emt 0:00:07]} Nf6 {[%emt 0:00:04]} 5. Nc3 {[%emt 0:00:40]} a6 {[%emt 0:00:05]} 6. Be2 {[%emt 0:00:30]} e6 {[%emt 0:00:07]} 7. O-O {[%emt 0:00:12]} Be7 {[%emt 0:00:10]} 8. Be3 {[%emt 0:00:47]} O-O {[%emt 0:00:21]} 9. f4 {[%emt 0:01:32]} Nc6 {[%emt 0:01:01]} 10. Qd2 {[%emt 0:03:46]} Qc7 {[%emt 0:00:56]} 11. a4 {[%emt 0:02:57]} Nxd4 {[%emt 0:01:50]} 12. Bxd4 {[%emt 0:00:16]} e5 {[%emt 0:00:10]} 13. Be3 {[%emt 0:01:40]} Be6 {[%emt 0:01:52]} 14. Kh1 {[%emt 0:02:20]} Rac8 {[%emt 0:00:09]} 15. f5 {[%emt 0:03:03]} Bc4 {[%emt 0:00:07]} 16. Bg5 {[%emt 0:01:37]} Bxe2 {[%emt 0:05:33]} 17. Qxe2 {[%emt 0:00:17]} Qc4 {[%emt 0:01:05]} 18. Qxc4 {[%emt 0:01:47]} Rxc4 {[%emt 0:00:10]} 19. Bxf6 {[%emt 0:00:06]} Bxf6 {[%emt 0:00:06]} 20. Rfd1 {[%emt 0:02:34]} Rd4 {[%emt 0:02:24]} 21. Rd3 {[%emt 0:06:48]} Rxd3 {[%emt 0:01:05]} 22. cxd3 {[%emt 0:00:12]} Rc8 {[%emt 0:09:30]} 23. Ra3 {[%emt 0:02:10]} Bd8 {[%emt 0:07:33]} 24. Rb3 {[%emt 0:00:45]} b6 {[%emt 0:00:20]} 25. g3 {[%emt 0:02:44]} Rc6 {[%emt 0:00:14]} 26. Kg2 {[%emt 0:00:39]} Kf8 {[%emt 0:00:18]} 27. Kf3 {[%emt 0:04:35]} Ke8 {[%emt 0:00:09]} 28. Nd5 {[%emt 0:02:22]} a5 {[%emt 0:00:38]} 29. Ne3 {[%emt 0:08:11]} Kd7 {[%emt 0:02:57]} 30. Nc4 {[%emt 0:00:11]} f6 {[%emt 0:02:11]} 31. Rb5 {[%emt 0:02:38]} Bc7 {[%emt 0:05:48]} 32. h4 {[%emt 0:03:38]} Bd8 {[%emt 0:01:26]} 33. Kg4 {[%emt 0:01:43]} Kc7 {[%emt 0:01:34]} 34. Kh5 {[%emt 0:03:11]} Kd7 {[%emt 0:06:33]} 35. g4 {[%emt 0:00:33]} Ke7 {[%emt 0:00:09]} 36. g5 {[%emt 0:01:49]} Kf7 {[%emt 0:00:48]} 37. g6+ {[%emt 0:05:02]} hxg6+ {[%emt 0:00:12]} 38. fxg6+ {[%emt 0:00:10]} Ke6 {[%emt 0:05:13]} 39. Kg4 {[%emt 0:01:42]} Rc7 {[%emt 0:02:25]} 40. h5 {[%emt 0:01:14]} Rc6 {[%emt 0:04:31]} 41. b3 {[%emt 0:07:19]} Ke7 {[%emt 0:04:34]} 42. Kf5 {[%emt 0:01:07]} Rc7 {[%emt 0:00:32]} 43. Nxb6 {[%emt 0:00:21]} Rc1 {[%emt 0:00:09]} 44. Nd5+ {[%emt 0:00:08]} Ke8 {[%emt 0:00:12]} 45. Ke6 {[%emt 0:00:17]} 1-0

[Event "Chinese Championship-B Men 2024"]
[Site "Liaocheng"]
[Date "2024.04.24"]
[Round "4.15"]
[White "Jin, Yueheng"]
[Black "Xie, Jiaxiang"]
[Result "1-0"]
[WhiteElo "2407"]
[BlackElo "1757"]
[PlyCount "119"]
[EventDate "2024.04.24"]
[EventType "swiss"]
[EventCountry "CHN"]
[TimeControl "5400+30"]

1. Nf3 {[%emt 1:31:00]} Nf6 {[%emt 1:31:00]} 2. d4 {[%emt 0:00:30]} d6 {[%emt 0:00:30]} 3. g3 {[%emt 0:00:00]} g6 {[%emt 0:00:00]} 4. b3 {[%emt 0:00:00]} Bg7 {[%emt 0:00:00]} 5. Bb2 {[%emt 0:00:00]} O-O {[%emt 0:00:00]} 6. Bg2 {[%emt 0:00:00]} c6 {[%emt 0:00:00]} 7. O-O {[%emt 0:00:00]} Qc7 {[%emt 0:00:00]} 8. c4 {[%emt 0:00:00]} Nbd7 {[%emt 0:00:00]} 9. Nc3 {[%emt 0:00:00]} e5 {[%emt 0:00:00]} 10. e4 {[%emt 0:00:00]} Re8 {[%emt 0:00:00]} 11. Re1 {[%emt 0:00:00]} Nf8 {[%emt 0:00:00]} 12. h3 {[%emt 0:00:00]} h6 {[%emt 0:00:00]} 13. Rc1 {[%emt 0:00:00]} g5 {[%emt 0:00:00]} 14. Ba3 {[%emt 0:00:00]} Ng6 {[%emt 0:00:00]} 15. dxe5 {[%emt 0:00:00]} dxe5 {[%emt 0:00:00]} 16. Bd6 {[%emt 0:00:00]} Qd7 {[%emt 0:00:00]} 17. Na4 {[%emt 0:00:00]} Bf8 {[%emt 0:00:00]} 18. Bxf8 {[%emt 0:00:00]} Qxd1 {[%emt 0:00:00]} 19. Rcxd1 {[%emt 0:00:00]} Kxf8 {[%emt 0:00:00]} 20. c5 {[%emt 0:00:00]} Be6 {[%emt 0:00:00]} 21. Nd2 {[%emt 0:00:00]} Ke7 {[%emt 0:00:00]} 22. Nf1 {[%emt 0:00:00]} Red8 {[%emt 0:00:00]} 23. Ne3 {[%emt 0:00:00]} Rxd1 {[%emt 0:00:00]} 24. Rxd1 {[%emt 0:00:00]} Rd8 {[%emt 0:00:00]} 25. Rxd8 {[%emt 0:00:00]} Kxd8 {[%emt 0:00:00]} 26. Kf1 {[%emt 0:00:00]} Kc7 {[%emt 0:00:00]} 27. Ke2 {[%emt 0:00:00]} h5 {[%emt 0:00:00]} 28. Nb2 {[%emt 0:00:00]} h4 {[%emt 0:00:00]} 29. Nd3 {[%emt 0:00:00]} Nh5 {[%emt 0:00:00]} 30. Kf3 {[%emt 0:00:00]} b6 {[%emt 0:00:00]} 31. cxb6+ {[%emt 0:00:00]} axb6 {[%emt 0:00:00]} 32. Nf5 hxg3 {[%emt 0:00:00]} 33. fxg3 {[%emt 0:00:00]} Bxf5 {[%emt 0:00:00]} 34. exf5 {[%emt 0:00:00]} e4+ {[%emt 0:00:00]} 35. Kg4 {[%emt 0:00:00]} exd3 {[%emt 0:00:00]} 36. Kxh5 {[%emt 0:00:00]} d2 {[%emt 0:00:00]} 37. Bf3 {[%emt 0:00:00]} Ne5 {[%emt 0:00:00]} 38. Bd1 {[%emt 0:00:00]} Nd3 {[%emt 0:00:00]} 39. Kxg5 {[%emt 0:00:00]} Nf2 {[%emt 0:00:00]} 40. Be2 {[%emt 0:00:00]} Ne4+ {[%emt 0:00:00]} 41. Kf4 {[%emt 0:03:27]} Nc3 {[%emt 0:00:00]} 42. Bf3 {[%emt 0:00:07]} Kd6 {[%emt 0:00:00]} 43. h4 {[%emt 0:05:18]} d1=Q {[%emt 0:00:00]} 44. Bxd1 {[%emt 0:00:04]} Nxd1 {[%emt 0:00:00]} 45. h5 {[%emt 0:02:33]} Ke7 {[%emt 0:00:00]} 46. h6 {[%emt 0:01:33]} Kf8 {[%emt 0:00:00]} 47. g4 {[%emt 0:00:56]} c5 {[%emt 0:00:00]} 48. a4 {[%emt 0:03:51]} f6 {[%emt 0:00:00]} 49. g5 {[%emt 0:00:01]} fxg5+ {[%emt 0:00:00]} 50. Kxg5 {[%emt 0:00:01]} Nf2 {[%emt 0:00:00]} 51. f6 {[%emt 0:04:05]} Ne4+ {[%emt 0:00:00]} 52. Kf5 {[%emt 0:01:41]} Nd6+ {[%emt 0:00:00]} 53. Ke6 {[%emt 0:00:06]} Nf7 {[%emt 0:00:00]} 54. Kd7 {[%emt 0:00:36]} Nxh6 {[%emt 0:00:00]} 55. Kc6 {[%emt 0:00:01]} Ng4 {[%emt 0:00:00]} 56. Kxb6 {[%emt 0:00:05]} Nxf6 {[%emt 0:00:00]} 57. a5 {[%emt 0:00:22]} Nd5+ {[%emt 0:00:00]} 58. Kxc5 {[%emt 0:00:17]} Nc7 {[%emt 0:00:00]} 59. Kc6 {[%emt 0:01:06]} Na6 {[%emt 0:00:00]} 60. Kb6 {[%emt 0:00:09]} 1-0

[Event "Chinese Championship-B Men 2024"]
[Site "Liaocheng"]
[Date "2024.04.24"]
[Round "5.1"]
[White "Xie, Kaifan"]
[Black "Wu, Yixing"]
[Result "1-0"]
[WhiteElo "2393"]
[BlackElo "2348"]
[PlyCount "119"]
[EventDate "2024.04.24"]
[EventType "swiss"]
[EventCountry "CHN"]
[TimeControl "5400+30"]

1. d4 {[%emt 0:00:02]} Nf6 {[%emt 0:00:05]} 2. c4 {[%emt 0:00:07]} e6 {[%emt 0:00:03]} 3. Nc3 {[%emt 0:00:11]} d5 {[%emt 0:00:04]} 4. cxd5 {[%emt 0:02:55]} exd5 {[%emt 0:00:04]} 5. Bg5 {[%emt 0:00:11]} Be7 {[%emt 0:00:06]} 6. e3 {[%emt 0:00:27]} h6 {[%emt 0:00:06]} 7. Bh4 {[%emt 0:00:17]} c6 {[%emt 0:00:04]} 8. Bd3 {[%emt 0:00:08]} O-O {[%emt 0:00:05]} 9. Bg3 {[%emt 0:01:50]} Re8 {[%emt 0:06:28]} 10. h3 {[%emt 0:01:07]} a5 {[%emt 0:17:04]} 11. Nf3 {[%emt 0:08:42]} b5 {[%emt 0:11:14]} 12. O-O {[%emt 0:09:34]} Nbd7 {[%emt 0:04:00]} 13. Rc1 {[%emt 0:03:33]} Ba6 {[%emt 0:02:18]} 14. Qe2 {[%emt 0:12:22]} Qb6 {[%emt 0:01:13]} 15. Ne5 {[%emt 0:00:21]} Nxe5 {[%emt 0:01:20]} 16. Bxe5 {[%emt 0:00:25]} b4 {[%emt 0:10:16]} 17. Na4 {[%emt 0:01:29]} Bxd3 {[%emt 0:00:08]} 18. Qxd3 {[%emt 0:00:04]} Qa6 {[%emt 0:00:11]} 19. Qxa6 {[%emt 0:16:01]} Rxa6 {[%emt 0:00:05]} 20. Bxf6 {[%emt 0:00:06]} Bxf6 {[%emt 0:00:05]} 21. Rc2 {[%emt 0:01:25]} Be7 {[%emt 0:09:14]} 22. Rfc1 {[%emt 0:00:23]} Rc8 {[%emt 0:00:04]} 23. Nc5 {[%emt 0:00:15]} Ra7 {[%emt 0:00:08]} 24. Nd3 {[%emt 0:01:28]} Rac7 {[%emt 0:00:06]} 25. Ne5 {[%emt 0:01:56]} Bd6 {[%emt 0:01:50]} 26. Nd3 {[%emt 0:09:52]} Kf8 {[%emt 0:01:02]} 27. g4 {[%emt 0:03:20]} Ke7 {[%emt 0:01:12]} 28. Kg2 {[%emt 0:00:06]} Kd7 {[%emt 0:00:33]} 29. Kf3 {[%emt 0:01:35]} f6 {[%emt 0:01:50]} 30. h4 {[%emt 0:01:26]} Rb7 {[%emt 0:05:56]} 31. Nc5+ {[%emt 0:02:51]} Bxc5 {[%emt 0:00:07]} 32. Rxc5 {[%emt 0:00:01]} Ra7 {[%emt 0:00:22]} 33. Kf4 {[%emt 0:01:35]} Rcc7 {[%emt 0:05:24]} 34. f3 {[%emt 0:05:35]} Ra6 {[%emt 0:05:21]} 35. e4 {[%emt 0:02:13]} dxe4 {[%emt 0:00:08]} 36. fxe4 {[%emt 0:00:16]} Rb7 {[%emt 0:01:24]} 37. Kf5 {[%emt 0:00:41]} a4 {[%emt 0:05:41]} 38. Kg6 {[%emt 0:01:28]} b3 {[%emt 0:04:02]} 39. a3 {[%emt 0:00:43]} Ra8 {[%emt 0:00:05]} 40. Rxc6 {[%emt 0:02:13]} Re8 {[%emt 0:00:11]} 41. Kf5 {[%emt 0:00:20]} g6+ {[%emt 0:04:20]} 42. Kf4 {[%emt 0:00:15]} g5+ {[%emt 0:00:06]} 43. Kf3 {[%emt 0:02:26]} Re6 {[%emt 0:01:30]} 44. d5 {[%emt 0:00:15]} Rd6 {[%emt 0:00:08]} 45. Rxd6+ {[%emt 0:01:40]} Kxd6 {[%emt 0:00:02]} 46. Rc6+ {[%emt 0:00:01]} Ke7 {[%emt 0:02:00]} 47. h5 {[%emt 0:00:19]} Rb8 {[%emt 0:01:52]} 48. Ke3 {[%emt 0:00:07]} Kd7 {[%emt 0:00:56]} 49. Rxf6 {[%emt 0:01:14]} Rc8 {[%emt 0:00:10]} 50. Rc6 {[%emt 0:00:04]} Rf8 {[%emt 0:00:44]} 51. e5 {[%emt 0:00:43]} Rf1 {[%emt 0:00:20]} 52. e6+ {[%emt 0:00:08]} Kd8 {[%emt 0:00:14]} 53. Kd4 {[%emt 0:00:32]} Rf2 {[%emt 0:01:23]} 54. Ke5 {[%emt 0:01:25]} Rxb2 {[%emt 0:00:17]} 55. Kd6 {[%emt 0:00:05]} Re2 {[%emt 0:00:14]} 56. Rc7 {[%emt 0:01:10]} b2 {[%emt 0:03:00]} 57. Rb7 {[%emt 0:00:06]} Kc8 {[%emt 0:00:12]} 58. Rb5 {[%emt 0:00:17]} Rc2 {[%emt 0:00:43]} 59. e7 {[%emt 0:00:15]} Re2 {[%emt 0:00:10]} 60. Rxb2 {[%emt 0:00:31]} 1-0